bitfinex/quotes_SOLUSD_20250321
["timestamp","ask_amount","ask_price","bid_price","bid_amount"]
[1742589413658,0.03,128.15,128.14,50.52202896]
[1742589413855,0.03,128.15,128.14,48.96197385]
[1742589414163,0.03,128.15,128.14,50.52198784]
[1742589414461,0.03,128.15,128.14,105.27639524]
[1742589414635,0.03,128.15,128.14,104.77639524]
[1742589414834,0.03,128.17,128.14,84.00479889]
[1742589415039,0.03,128.17,128.16,68.44300925]
[1742589415265,0.03,128.17,128.16,87.37698125]
[1742589415561,0.03,128.17,128.16,88.93677784]
[1742589415856,0.03,128.17,128.16,87.37698125]
[1742589416064,0.03,128.17,128.16,88.93671123]
[1742589416258,0.03,128.17,128.16,96.73941123]
[1742589417048,0.03,128.17,128.16,95.17968125]
[1742589417455,0.03,128.17,128.16,76.53003239]
[1742589419666,0.03,128.17,128.16,6.68]
[1742589421466,0.03,128.17,128.15,13.68860185]
[1742589421660,0.03,128.17,128.16,6.68]
[1742589422244,0.03,128.17,128.16,20.36860185]
[1742589422444,0.03,128.17,128.16,13.68860185]
[1742589422956,0.03,128.17,128.16,20.36860185]
[1742589424246,0.03,128.17,128.16,28.17130185]
[1742589425970,0.03,128.17,128.16,91.28483239]
[1742589426767,0.063,128.21,128.16,131.50112216]
[1742589426952,0.063,128.21,128.2,13.68860185]
[1742589427154,0.063,128.21,128.2,20.36860185]
[1742589427757,0.063,128.21,128.2,28.16890185]
[1742589429274,0.063,128.21,128.2,28.45322499]
[1742589429474,0.063,128.21,128.2,47.10287385]
[1742589431366,0.063,128.21,128.2,28.45322499]
[1742589431575,0.063,128.21,128.2,20.65292499]
[1742589431948,0.063,128.21,128.2,47.10287385]
[1742589433085,0.063,128.21,128.2,253.28287385]
[1742589433256,0.063,128.22,128.21,0.28432314]
[1742589433574,0.063,128.25,128.23,0.28432314]
[1742589433873,0.063,128.25,128.24,20.36860185]
[1742589434173,0.063,128.25,128.24,39.30257385]
[1742589435067,0.03,128.26,128.25,18.64964886]
[1742589435255,0.03,128.26,128.25,40.13545071]
[1742589435657,0.063,128.27,128.26,0.28432314]
[1742589435878,0.03,128.3,128.28,0.28432314]
[1742589436076,0.03,128.3,128.29,6.96432314]
[1742589436279,0.03,128.3,128.29,20.65292499]
[1742589437276,0.03,128.3,128.29,48.65572025]
[1742589437476,0.03,128.3,128.29,48.94004339]
[1742589438282,7.7889,128.39,128.3,20.75389514]
[1742589438574,7.7889,128.39,128.35,13.68860185]
[1742589438884,21.47750185,128.39,128.36,6.68]
[1742589439052,40.94940185,128.39,128.36,6.68]
[1742589439257,13.68860185,128.38,128.36,6.68]
[1742589439459,0.14216157,128.36,128.28,219.84860185]
[1742589439676,13.68860185,128.34,128.3,13.68860185]
[1742589440070,13.83076342,128.36,128.31,13.68860185]
[1742589440868,13.68860185,128.35,128.3,13.68860185]
[1742589441464,7.7918,128.34,128.3,13.68860185]
[1742589441663,21.48040185,128.34,128.29,20.36860185]
[1742589442271,40.95990185,128.34,128.29,20.36860185]
[1742589443880,13.97292499,128.33,128.29,6.68]
[1742589444186,13.97292499,128.33,128.28,226.52860185]
[1742589445173,13.97292499,128.33,128.28,219.84860185]
[1742589445371,13.97292499,128.33,128.29,6.68]
[1742589445585,13.97292499,128.33,128.28,226.52860185]
[1742589446084,7.793,128.32,128.28,226.52860185]
[1742589448379,27.2755,128.32,128.28,226.52860185]
[1742589449691,27.2755,128.32,128.29,13.68860185]
[1742589449989,0.03,128.34,128.31,13.68860185]
[1742589450170,0.03,128.34,128.32,20.36860185]
[1742589450567,0.03,128.34,128.32,6.68]
[1742589450772,13.97292499,128.33,128.32,6.68]
[1742589450993,13.97292499,128.33,128.29,6.68]
[1742589451193,15.24770185,128.32,128.28,219.84860185]
[1742589451371,13.68860185,128.31,128.28,212.84]
[1742589452375,7.7942,128.3,128.28,212.84]
[1742589452989,21.40330185,128.32,128.28,212.84]
[1742589452990,7.7938,128.31,128.28,212.84]
[1742589453477,7.7938,128.31,128.28,226.52860185]
[1742589455998,1.5591,128.32,128.28,20.36860185]
[1742589456301,1.5591,128.32,128.29,13.68860185]
[1742589456797,9.3521,128.32,128.29,13.68860185]
[1742589457185,1.5591,128.32,128.29,13.68860185]
[1742589457380,9.3522,128.32,128.29,13.68860185]
[1742589457703,9.3522,128.32,128.28,20.36860185]
[1742589458095,9.3522,128.32,128.28,6.68]
[1742589458096,23.04080185,128.32,128.28,6.68]
[1742589459478,9.3522,128.32,128.28,6.68]
[1742589459678,0.28432314,128.31,128.27,6.68]
[1742589459904,13.68860185,128.29,128.28,0.063]
[1742589461003,21.48340185,128.29,128.28,0.063]
[1742589463309,7.7948,128.29,128.28,0.063]
[1742589464202,21.48340185,128.29,128.28,0.063]
[1742589466703,21.76772499,128.29,128.28,0.063]
[1742589470215,48.63029699,128.29,128.28,0.063]
[1742589471013,23.38662499,128.29,128.28,0.063]
[1742589471215,28.21292314,128.27,128.26,13.68860185]
[1742589471429,18.64964886,128.25,128.17,13.68860185]
[1742589471592,20.20308682,128.25,128.17,13.68860185]
[1742589471797,13.68860185,128.22,128.17,13.68860185]
[1742589471997,13.68860185,128.24,128.19,13.68860185]
[1742589472320,21.48590185,128.25,128.2,20.40860185]
[1742589472494,21.48590185,128.25,128.21,6.72]
[1742589473807,13.68860185,128.24,128.21,6.72]
[1742589474001,21.76982499,128.26,128.21,6.72]
[1742589474203,21.76982499,128.26,128.21,20.40860185]
[1742589475092,5.80406499,128.25,128.21,20.40860185]
[1742589476331,5.80406499,128.24,128.21,20.40860185]
[1742589476520,5.80406499,128.24,128.22,13.68860185]
[1742589477114,5.80406499,128.24,128.23,13.68860185]
[1742589477521,7.7963,128.27,128.23,13.68860185]
[1742589478615,7.7956,128.28,128.24,13.68860185]
[1742589479114,5.8046179,128.27,128.25,6.72]
[1742589479617,5.8046179,128.27,128.26,13.68860185]
[1742589481200,5.8046179,128.27,128.26,21.36169774]
[1742589481406,13.6007179,128.27,128.25,28.08169774]
[1742589481903,34.96241564,128.27,128.25,6.72]
[1742589482097,5.8046179,128.27,128.25,6.72]
[1742589482298,5.8046179,128.27,128.26,21.36169774]
[1742589482512,7.7956,128.28,128.26,21.36169774]
[1742589482719,29.18589774,128.3,128.25,28.08169774]
[1742589483517,29.18589774,128.3,128.26,21.36169774]
[1742589483518,7.8242,128.3,128.26,21.36169774]
[1742589483906,5.80655796,128.29,128.26,21.36169774]
[1742589484904,5.80655796,128.28,128.27,21.36169774]
[1742589485110,0.03,128.3,128.25,8.3405]
[1742589485305,0.03,128.3,128.28,21.36169774]
[1742589485505,0.03,128.3,128.29,6.72]
[1742589490620,0.03,128.3,128.29,28.08169774]
[1742589491631,0.03,128.3,128.29,6.72]
[1742589492021,0.03,128.3,128.29,28.08169774]
[1742589493515,0.03,128.3,128.29,28.36602088]
[1742589495522,0.03,128.3,128.29,54.81046974]
[1742589496922,0.03,128.3,128.29,55.09479288]
[1742589497125,0.03,128.34,128.33,21.36169774]
[1742589497335,0.03,128.34,128.33,28.08169774]
[1742589499029,0.03,128.34,128.33,28.36602088]
[1742589499336,0.03,128.34,128.33,28.08169774]
[1742589499716,0.03,128.34,128.31,21.36169774]
[1742589499933,0.03,128.34,128.33,6.74]
[1742589503420,21.39169774,128.34,128.29,227.36169774]
[1742589503623,21.36169774,128.33,128.3,6.74]
[1742589504041,7.793,128.32,128.3,6.74]
[1742589508841,7.8219,128.34,128.3,28.10169774]
[1742589509242,21.48385218,128.34,128.3,6.74]
[1742589510839,13.66195218,128.33,128.3,6.74]
[1742589512045,21.48385218,128.34,128.3,6.74]
[1742589512955,7.8219,128.34,128.3,20.40195218]
[1742589513149,0.03,128.34,128.3,6.74]
[1742589513345,0.03,128.34,128.31,13.66195218]
[1742589515660,0.03,128.34,128.32,13.66195218]
[1742589516859,0.03,128.34,128.33,13.66195218]
[1742589517168,0.03,128.34,128.33,13.94627532]
[1742589517883,0.03,128.34,128.33,75.13966239]
[1742589518062,0.03,128.34,128.33,88.80161457]
[1742589518261,0.03,128.34,128.33,89.58593771]
[1742589518446,0.03,128.34,128.33,96.00683771]
[1742589518654,0.03,128.34,128.33,95.50683771]
[1742589518844,0.03,128.34,128.33,99.95358368]
[1742589519158,0.03,128.34,128.33,60.75838197]
[1742589519345,0.03,128.34,128.33,82.08054116]
[1742589522061,23.72406519,128.43,128.36,20.0]
[1742589522267,23.72406519,128.43,128.37,6.72]
[1742589522268,10.188206,128.43,128.37,6.72]
[1742589522445,21.32215919,128.42,128.37,28.04215919]
[1742589523556,31.51036519,128.43,128.38,21.32215919]
[1742589524164,7.7875,128.41,128.38,21.32215919]
[1742589524863,29.10915919,128.42,128.37,28.04215919]
[1742589525049,2.401906,128.43,128.39,21.32215919]
[1742589525263,10.188406,128.43,128.39,21.32215919]
[1742589526367,2.401906,128.43,128.4,41.32215919]
[1742589526562,2.401906,128.43,128.41,6.72]
[1742589526764,2.401906,128.43,128.41,28.04215919]
[1742589527355,2.401906,128.43,128.42,21.32215919]
[1742589527567,2.401906,128.43,128.42,40.54045433]
[1742589527770,0.03,128.47,128.46,20.0]
[1742589527958,0.03,128.47,128.46,275.62864152]
[1742589528150,0.03,128.47,128.46,254.30648233]
[1742589528551,0.03,128.47,128.46,272.95613119]
[1742589528769,0.03,128.47,128.46,294.27829038]
[1742589529352,0.03,128.47,128.46,254.30648233]
[1742589529557,0.03,128.47,128.46,294.27829038]
[1742589530768,0.03,128.47,128.46,294.77829038]
[1742589531271,30.44118233,128.55,128.47,0.28432314]
[1742589531456,21.32215919,128.54,128.46,254.02215919]
[1742589531658,21.32215919,128.53,128.46,212.7]
[1742589531869,21.32215919,128.51,128.47,21.32215919]
[1742589532057,21.32215919,128.52,128.47,21.32215919]
[1742589532262,29.10285919,128.53,128.48,21.32215919]
[1742589532671,21.32215919,128.52,128.47,21.32215919]
[1742589533986,7.7814,128.51,128.47,21.32215919]
[1742589535079,7.7814,128.51,128.46,205.9]
[1742589535080,21.32215919,128.5,128.46,205.9]
[1742589535372,21.32215919,128.49,128.46,205.9]
[1742589535558,22.84755919,128.49,128.46,205.9]
[1742589535766,21.32215919,128.48,128.46,205.9]
[1742589535965,21.32215919,128.47,128.45,6.82]
[1742589536166,7.7845,128.46,128.45,6.82]
[1742589536360,7.7845,128.46,128.43,6.82]
[1742589536774,29.10665919,128.46,128.43,6.82]
[1742589540179,7.7845,128.46,128.43,28.14215919]
[1742589540582,7.7839,128.47,128.43,28.14215919]
[1742589541456,21.32215919,128.46,128.43,6.82]
[1742589541767,21.32215919,128.45,128.43,6.82]
[1742589542565,7.7857,128.44,128.41,21.32215919]
[1742589542768,29.10785919,128.44,128.4,227.12215919]
[1742589542972,29.10785919,128.44,128.4,205.8]
[1742589542973,21.32215919,128.43,128.4,205.8]
[1742589543670,21.32215919,128.42,128.4,205.8]
[1742589543871,22.92865919,128.43,128.4,205.8]
[1742589544078,1.6065,128.43,128.4,205.8]
[1742589545074,7.7846,128.46,128.4,227.12215919]
[1742589545287,29.10675919,128.46,128.41,21.32215919]
[1742589545469,21.32215919,128.44,128.4,227.12215919]
[1742589545671,21.32215919,128.44,128.4,205.8]
[1742589545872,7.7846,128.46,128.4,227.12215919]
[1742589546083,21.32215919,128.45,128.4,227.12215919]
[1742589547588,29.10775919,128.45,128.4,227.12215919]
[1742589549688,29.10905919,128.43,128.4,205.8]
[1742589550071,29.10905919,128.43,128.39,6.8]
[1742589550278,19.74712314,128.45,128.39,28.12215919]
[1742589550279,29.10815919,128.44,128.39,28.12215919]
[1742589554591,21.32215919,128.43,128.39,6.8]
[1742589555181,21.32215919,128.42,128.39,6.8]
[1742589555383,27.2503,128.44,128.38,0.063]
[1742589555589,8.01,128.41,128.38,0.063]
[1742589555781,21.32215919,128.39,128.38,0.063]
[1742589556579,29.11085919,128.39,128.38,0.063]
[1742589556779,29.39518233,128.39,128.38,0.063]
[1742589557187,48.04483119,128.39,128.38,0.063]
[1742589565907,48.20330654,128.39,128.38,0.063]
[1742589566902,48.48762968,128.39,128.38,0.063]
[1742589567081,40.82476444,128.39,128.38,0.063]
[1742589575709,21.89079244,128.39,128.38,0.063]
[1742589577610,13.8177693,128.39,128.38,0.063]
[1742589577814,0.15847535,128.39,128.38,13.72229395]
[1742589578116,0.1643583,128.41,128.4,28.095]
[1742589578312,0.1643583,128.41,128.4,41.75429395]
[1742589579318,0.1643583,128.41,128.4,57.18902686]
[1742589580319,0.1643583,128.41,128.4,57.47335]
[1742589580521,0.1643583,128.41,128.4,49.40092686]
[1742589582314,0.1643583,128.41,128.38,21.36892686]
[1742589582616,0.1643583,128.41,128.38,6.863]
[1742589584006,7.9519583,128.41,128.38,6.863]
[1742589584219,29.25788516,128.41,128.38,6.863]
[1742589586119,0.15713156,128.39,128.38,6.863]
[1742589587516,7.94583156,128.39,128.38,6.863]
[1742589587717,29.25175842,128.39,128.38,6.863]
[1742589587906,29.25175842,128.39,128.38,0.063]
[1742589588101,29.53608156,128.39,128.38,0.063]
[1742589588300,48.18573042,128.39,128.38,0.063]
[1742589588715,49.76183042,128.39,128.38,0.063]
[1742589597929,7.94583156,128.39,128.38,0.063]
[1742589598725,29.25175842,128.39,128.38,0.063]
[1742589599126,21.59835659,128.39,128.38,0.063]
[1742589600826,21.88267973,128.39,128.38,0.063]
[1742589601230,40.53232859,128.39,128.38,0.063]
[1742589603318,40.53232859,128.39,128.38,0.0001]
[1742589603512,40.53232859,128.39,128.3,213.8971]
[1742589603513,20.28432314,128.35,128.3,205.963]
[1742589603718,0.28432314,128.33,128.3,205.963]
[1742589603922,13.65252503,128.31,128.3,205.963]
[1742589604149,32.58649703,128.31,128.3,0.063]
[1742589604440,0.28432314,128.29,128.26,6.843]
[1742589604809,13.65252503,128.27,128.26,6.843]
[1742589605553,13.65252503,128.3,128.26,6.843]
[1742589605849,13.65252503,128.3,128.26,20.49552503]
[1742589606145,13.65252503,128.3,128.26,6.843]
[1742589606825,5.79507242,128.29,128.26,6.843]
[1742589607256,27.15729848,128.29,128.26,6.843]
[1742589608142,21.36222606,128.29,128.26,6.843]
[1742589608515,21.36222606,128.29,128.26,0.063]
[1742589608732,21.6465492,128.27,128.26,0.063]
[1742589609733,21.36222606,128.27,128.26,0.063]
[1742589609935,21.50438763,128.29,128.26,0.063]
[1742589610138,21.36222606,128.29,128.26,0.063]
[1742589610518,5.78594255,128.28,128.26,0.063]
[1742589611422,21.36222606,128.3,128.26,0.063]
[1742589611940,21.36222606,128.28,128.26,0.063]
[1742589614729,21.36222606,128.29,128.26,0.063]
[1742589621936,29.15712606,128.29,128.26,0.063]
[1742589622144,21.36222606,128.28,128.26,0.063]
[1742589622641,29.15712606,128.29,128.26,0.063]
[1742589623437,21.36222606,128.28,128.26,0.063]
[1742589623819,21.36222606,128.27,128.26,0.063]
[1742589624022,29.4425492,128.27,128.26,0.063]
[1742589625828,29.15822606,128.27,128.26,0.063]
[1742589627646,29.4425492,128.27,128.26,0.063]
[1742589629930,35.2289736,128.27,128.26,0.063]
[1742589632336,53.87862246,128.27,128.26,0.063]
[1742589633155,46.20049262,128.27,128.26,0.063]
[1742589633734,0.56864628,128.26,128.25,0.0001]
[1742589633936,21.76501936,128.26,128.25,0.0001]
[1742589634755,27.55144376,128.26,128.25,0.0001]
[1742589635957,5.7864244,128.26,128.25,0.0001]
[1742589636264,27.26712062,128.26,128.25,0.0001]
[1742589642257,5.7864244,128.26,128.25,0.0001]
[1742589642455,13.5830244,128.26,128.25,0.0001]
[1742589643039,27.26712062,128.26,128.25,0.0001]
[1742589646440,27.55144376,128.26,128.25,0.0001]
[1742589646639,46.48541576,128.26,128.25,0.0001]
[1742589649345,20.0,128.18,128.17,9.622e-05]
[1742589649549,20.28432314,128.16,128.15,0.0001]
[1742589649760,38.933972,128.16,128.15,0.0001]
[1742589649952,0.28432314,128.15,128.13,0.0001]
[1742589650345,21.48799622,128.14,128.13,0.0001]
[1742589651256,29.22252777,128.14,128.13,0.0001]
[1742589651456,35.00895217,128.14,128.13,0.0001]
[1742589652665,27.20505217,128.14,128.13,0.0001]
[1742589652863,5.7864244,128.14,128.13,0.0001]
[1742589654171,21.41862777,128.16,128.13,0.0001]
[1742589654548,21.41862777,128.15,128.13,0.0001]
[1742589655966,21.41862777,128.17,128.13,0.0001]
[1742589657470,21.41862777,128.16,128.13,0.0001]
[1742589658274,21.41862777,128.16,128.13,6.8001]
[1742589660652,21.41862777,128.17,128.13,6.8001]
[1742589661450,21.41862777,128.17,128.13,12.8775]
[1742589661650,21.41862777,128.18,128.13,34.29612777]
[1742589666772,21.41862777,128.18,128.13,28.21872777]
[1742589666979,21.41862777,128.17,128.13,6.8001]
[1742589667186,21.41862777,128.18,128.13,28.21872777]
[1742589668176,21.41862777,128.18,128.13,36.02312777]
[1742589668389,21.41862777,128.18,128.13,28.21872777]
[1742589668593,21.41862777,128.19,128.14,21.41862777]
[1742589670783,21.41862777,128.19,128.14,29.22252777]
[1742589671985,21.41862777,128.2,128.15,21.41862777]
[1742589673288,13.69248434,128.2,128.15,13.69248434]
[1742589674288,21.49278434,128.2,128.15,13.69248434]
[1742589675091,21.49278434,128.2,128.16,13.69248434]
[1742589675385,21.49278434,128.2,128.17,6.76]
[1742589675587,21.49238434,128.21,128.17,6.76]
[1742589675787,21.49178434,128.22,128.17,21.99308434]
[1742589676089,21.49178434,128.22,128.18,13.69248434]
[1742589677172,13.69248434,128.22,128.18,13.69248434]
[1742589677376,21.49118434,128.23,128.18,13.69248434]
[1742589678889,13.69248434,128.22,128.17,21.99308434]
[1742589679098,13.69248434,128.21,128.17,21.99308434]
[1742589679277,21.49258434,128.21,128.17,21.99308434]
[1742589679976,13.69248434,128.2,128.15,13.69248434]
[1742589680193,13.69248434,128.18,128.14,8.3006]
[1742589680572,13.69248434,128.17,128.13,6.0003]
[1742589680775,13.69248434,128.16,128.13,12.7603]
[1742589681298,7.8027,128.16,128.13,12.7603]
[1742589684102,27.3095,128.16,128.13,12.7603]
[1742589684692,41.00198434,128.16,128.13,0.0001]
[1742589684885,13.69248434,128.14,128.13,0.0001]
[1742589685091,13.69248434,128.15,128.13,0.0001]
[1742589685699,7.8039,128.14,128.13,0.0001]
[1742589698587,7.8339,128.14,128.13,0.0001]
[1742589702707,7.8339,128.14,128.1,27.00368435]
[1742589706417,27.3438,128.14,128.1,27.00368435]
[1742589708220,7.8339,128.14,128.1,27.00368435]
[1742589710321,7.8339,128.14,128.1,27.06668435]
[1742589714121,7.8339,128.14,128.1,20.47548434]
[1742589718620,0.03,128.14,128.1,20.47548434]
[1742589718818,0.03,128.14,128.12,13.69248434]
[1742589721217,0.03,128.14,128.12,21.49758434]
[1742589721536,0.03,128.14,128.13,13.69248434]
[1742589722524,0.03,128.14,128.12,13.69248434]
[1742589724637,0.03,128.14,128.12,21.49748434]
[1742589725028,0.03,128.14,128.13,13.69248434]
[1742589725631,0.03,128.14,128.13,13.97680748]
[1742589731029,0.03,128.14,128.13,13.69248434]
[1742589731230,0.03,128.14,128.12,13.69248434]
[1742589731431,0.03,128.14,128.13,6.7]
[1742589731636,13.69248434,128.17,128.13,6.7]
[1742589733144,7.8027,128.16,128.13,6.7]
[1742589733323,21.49518434,128.16,128.13,6.7]
[1742589733640,23.06028434,128.16,128.12,6.7]
[1742589734345,23.06028434,128.16,128.11,13.69248434]
[1742589734645,23.06028434,128.16,128.12,6.7]
[1742589734943,42.56708434,128.16,128.12,6.7]
[1742589736043,13.69248434,128.15,128.11,13.69248434]
[1742589736247,13.69248434,128.15,128.11,6.7]
[1742589736422,13.69248434,128.14,128.11,6.7]
[1742589736620,13.69248434,128.14,128.1,13.75548434]
[1742589736824,13.69248434,128.12,128.1,0.063]
[1742589737226,13.69248434,128.11,128.1,0.063]
[1742589738127,21.49818434,128.11,128.1,0.063]
[1742589738527,23.06328434,128.11,128.1,0.063]
[1742589741347,23.34760748,128.11,128.1,0.063]
[1742589749048,7.8057,128.11,128.1,0.063]
[1742589750351,27.3166,128.13,128.1,0.063]
[1742589750546,41.00908434,128.13,128.1,0.063]
[1742589752365,3.86868244,128.18,128.1,6.763]
[1742589752366,7.8042,128.14,128.1,6.763]
[1742589752539,7.8042,128.14,128.11,13.69248434]
[1742589754653,21.49668434,128.14,128.1,13.75548434]
[1742589754958,13.69248434,128.12,128.1,0.063]
[1742589755149,13.69248434,128.11,128.1,0.063]
[1742589756844,7.8057,128.11,128.1,0.063]
[1742589759158,7.8051,128.12,128.1,0.063]
[1742589764569,21.49758434,128.12,128.1,0.063]
[1742589765553,21.49758434,128.12,128.1,0.0001]
[1742589769852,7.8051,128.12,128.1,0.0001]
[1742589771474,27.3167,128.13,128.1,0.0001]
[1742589771956,41.00918434,128.13,128.1,0.0001]
[1742589773979,27.3167,128.13,128.1,0.0001]
[1742589776364,41.00918434,128.13,128.1,0.0001]
[1742589791493,41.03918434,128.13,128.1,0.0001]
[1742589796079,19.5422,128.13,128.1,0.0001]
[1742589796481,33.23468434,128.13,128.1,0.0001]
[1742589797082,0.03,128.13,128.11,6.7]
[1742589797390,0.03,128.13,128.11,20.39248434]
[1742589797566,0.03,128.13,128.12,13.69248434]
[1742589800800,0.03,128.13,128.11,20.39248434]
[1742589800982,0.03,128.13,128.11,6.7]
[1742589802176,7.8345,128.13,128.11,6.7]
[1742589803701,27.3459,128.13,128.1,6.7001]
[1742589804595,7.8345,128.13,128.1,20.39258434]
[1742589806495,0.03,128.13,128.1,20.39258434]
[1742589806900,0.03,128.13,128.1,6.7001]
[1742589808099,13.69248434,128.12,128.1,0.0001]
[1742589808893,7.8057,128.11,128.1,0.0001]
[1742589813304,7.8051,128.12,128.1,0.0001]
[1742589815206,7.8351,128.12,128.1,0.0001]
[1742589818507,21.52758434,128.12,128.1,0.0001]
[1742589819511,7.8351,128.12,128.1,0.0001]
[1742589827601,0.03,128.12,128.1,0.0001]
[1742589827806,0.03,128.12,128.11,13.69248434]
[1742589828010,0.03,128.12,128.11,13.97680748]
[1742589829422,0.03,128.12,128.11,21.78250748]
[1742589830629,0.03,128.12,128.11,43.93685299]
[1742589831208,0.03,128.13,128.12,19.21829514]
[1742589831410,0.03,128.13,128.12,245.95077948]
[1742589831606,0.03,128.13,128.12,253.75587948]
[1742589832929,0.03,128.19,128.17,13.69248434]
[1742589833226,0.03,128.19,128.17,20.39248434]
[1742589835608,0.03,128.19,128.17,6.7]
[1742589839908,0.03,128.19,128.17,20.39248434]
[1742589840650,0.03,128.19,128.18,13.69248434]
[1742589843227,0.03,128.19,128.18,32.62645634]
[1742589843412,0.03,128.19,128.18,40.71227948]
[1742589843604,0.03,128.19,128.18,46.87397948]
[1742589844534,0.03,128.19,128.18,39.07247948]
[1742589846437,0.03,128.19,128.18,42.94982024]
[1742589849619,0.03,128.19,128.18,50.75132024]
[1742589851841,0.03,128.19,128.18,256.93132024]
[1742589852042,0.03,128.19,128.18,249.12982024]
[1742589853341,0.03,128.19,128.18,256.93132024]
[1742589858049,0.03,128.19,128.18,249.12982024]
[1742589859044,0.03,128.19,128.18,256.93132024]
[1742589859246,0.03,128.2,128.19,18.933972]
[1742589859542,0.03,128.2,128.19,34.47004127]
[1742589859740,0.03,128.24,128.19,34.47004127]
[1742589860044,0.03,128.24,128.23,13.97680748]
[1742589860251,0.03,128.24,128.23,20.65680748]
[1742589862048,0.03,128.24,128.23,6.68]
[1742589862442,0.03,128.24,128.23,20.37248434]
[1742589867353,0.03,128.24,128.22,13.69248434]
[1742589867552,13.72248434,128.24,128.2,13.69248434]
[1742589867742,0.03,128.24,128.2,20.37248434]
[1742589868250,0.03,128.24,128.22,0.28432314]
[1742589868554,0.03,128.24,128.23,13.69248434]
[1742589871955,0.03,128.24,128.23,13.97680748]
[1742589879561,0.03,128.24,128.23,40.70917948]
[1742589879750,0.03,128.24,128.23,42.26809746]
[1742589882162,0.03,128.25,128.23,42.26809746]
[1742589882373,0.03,128.27,128.25,0.28432314]
[1742589882674,0.03,128.27,128.26,32.3421332]
[1742589883455,0.03,128.27,128.26,40.1387332]
[1742589883860,0.03,128.27,128.26,32.3421332]
[1742589888454,0.03,128.27,128.26,0.28432314]
[1742589888660,0.03,128.27,128.26,13.97680748]
[1742589888860,0.03,128.27,128.26,6.68]
[1742589889969,7.826,128.27,128.26,6.68]
[1742589902368,7.826,128.27,128.25,0.063]
[1742589903981,21.51848434,128.27,128.25,0.063]
[1742589904361,13.69248434,128.26,128.25,0.063]
[1742589904656,33.69248434,128.26,128.25,0.0001]
[1742589906255,49.58910748,128.26,128.25,0.0001]
[1742589906558,13.69248434,128.22,128.19,0.063]
[1742589907188,0.28432314,128.25,128.19,0.063]
[1742589907189,13.69248434,128.23,128.19,0.063]
[1742589908663,27.2967,128.22,128.19,0.063]
[1742589908989,40.98918434,128.22,128.19,0.063]
[1742589909699,13.69248434,128.2,128.19,0.063]
[1742589910677,7.8001,128.21,128.19,0.063]
[1742589912255,21.49258434,128.21,128.19,0.063]
[1742589912461,13.69248434,128.2,128.19,0.063]
[1742589913680,21.49278434,128.2,128.19,0.063]
[1742589916985,7.8003,128.2,128.19,0.063]
[1742589921961,21.77710748,128.2,128.19,0.0001]
[1742589922573,21.49278434,128.2,128.19,0.0001]
[1742589923978,7.8003,128.2,128.19,0.0001]
[1742589924786,7.8,128.21,128.19,0.0001]
[1742589924972,7.8,128.21,128.19,13.69258434]
[1742589926067,27.2955,128.23,128.19,13.69258434]
[1742589926885,40.98798434,128.23,128.19,13.69258434]
[1742589927088,13.69248434,128.22,128.19,0.0001]
[1742589928487,7.7997,128.21,128.19,0.0001]
[1742589932487,19.4971,128.23,128.19,0.0001]
[1742589932692,33.18958434,128.23,128.19,0.0001]
[1742589932866,7.7978,128.24,128.19,13.69258434]
[1742589933072,21.49028434,128.24,128.2,13.69248434]
[1742589933271,7.7978,128.24,128.2,13.69248434]
[1742589933978,40.98488434,128.24,128.2,13.69248434]
[1742589934174,40.98488434,128.24,128.19,13.69258434]
[1742589935595,13.69248434,128.23,128.19,0.0001]
[1742589937194,13.69248434,128.22,128.19,0.0001]
[1742589937577,13.69248434,128.21,128.19,0.0001]
[1742589937873,13.69248434,128.22,128.19,0.0001]
[1742589938077,13.69248434,128.2,128.19,0.0001]
[1742589938281,13.97680748,128.2,128.19,0.0001]